fUSD/lending_fUSD_20240526
["ID","MTS","AMOUNT","RATE_DAILY","PERIOD"]
[327978836,1716732719577,-232.27766012,0.00032922,7]
[327978837,1716732719587,-249.23485907,0.00032922,7]
[327978838,1716732719597,-2006.01668888,0.00032922,7]
[327978839,1716732719606,-207921.54970853,0.00032989,2]
[327978840,1716732719615,-1800.0,0.00033,34]
[327978841,1716732719624,-150.0,0.00033,10]
[327978842,1716732719634,-400.78214783,0.00033,15]
[327978843,1716732719643,-15087.94324852,0.00033,2]
[327978844,1716732719653,-976.48464505,0.00033,2]
[327978845,1716732719663,-20050.0,0.00033,2]
[327978846,1716732719672,-1000.0,0.00033,2]
[327978847,1716732719681,-2000.0,0.00033,2]
[327978848,1716732719690,-13077.39762909,0.00033,2]
[327978849,1716732719700,-730.72593,0.00033,2]
[327978850,1716732719711,-208.0,0.00033,2]
[327978851,1716732719720,-524.61,0.00033041,2]
[327978852,1716732719730,-235.63,0.00033041,2]
[327978853,1716732719739,-153.56,0.00033041,2]
[327978854,1716732719749,-163.66,0.00033041,2]
[327978855,1716732719758,-352.24,0.00033041,2]
[327978856,1716732719768,-150.0,0.00033041,2]
[327978857,1716732719777,-421.24,0.00033041,2]
[327978858,1716732719786,-150.0,0.00033041,2]
[327978859,1716732719795,-150.0,0.00033041,2]
[327978860,1716732719804,-150.0,0.00033041,2]
[327978861,1716732719814,-524.61,0.00033041,2]
[327978862,1716732719823,-421.24,0.00033041,2]
[327978863,1716732719832,-163.66,0.00033041,2]
[327978864,1716732719841,-235.78,0.00033041,2]
[327978865,1716732719850,-151.35,0.00033041,2]
[327978866,1716732719859,-150.0,0.00033041,2]
[327978867,1716732719868,-150.0,0.00033041,2]
[327978868,1716732719877,-150.0,0.00033041,2]
[327978869,1716732719886,-352.24,0.00033041,2]
[327978870,1716732719895,-524.61,0.00033041,2]
[327978871,1716732719905,-150.0,0.00033041,2]
[327978872,1716732719914,-454.88,0.00033041,2]
[327978873,1716732719923,-524.61,0.00033041,2]
[327978874,1716732719932,-421.24,0.00033041,2]
[327978875,1716732719942,-150.0,0.00033041,2]
[327978876,1716732719951,-150.0,0.00033041,2]
[327978877,1716732719960,-150.0,0.00033041,2]
[327978878,1716732719969,-150.0,0.00033041,2]
[327978879,1716732719978,-352.24,0.00033041,2]
[327978880,1716732719987,-163.66,0.00033041,2]
[327978881,1716732719996,-150.0,0.00033041,2]
[327978882,1716732720006,-421.24,0.00033041,2]
[327978883,1716732720015,-150.0,0.00033041,2]
[327978884,1716732720026,-352.24,0.00033041,2]
[327978885,1716732720036,-524.61,0.00033041,2]
[327978886,1716732720045,-150.0,0.00033041,2]
[327978887,1716732720054,-163.66,0.00033041,2]
[327978888,1716732720064,-150.0,0.00033041,2]
[327978889,1716732720073,-421.24,0.00033041,2]
[327978890,1716732720083,-150.0,0.00033041,2]
[327978891,1716732720093,-163.66,0.00033041,2]
[327978892,1716732720102,-352.24,0.00033041,2]
[327978893,1716732720111,-1049.06,0.00033041,2]
[327978894,1716732720121,-150.0,0.00033041,2]
[327978895,1716732720131,-150.0,0.00033041,2]
[327978896,1716732720140,-718.72,0.00033041,2]
[327978897,1716732720150,-332.78,0.00033041,2]
[327978898,1716732720159,-162.82,0.00033041,2]
[327978899,1716732720168,-524.61,0.00033041,2]
[327978900,1716732720177,-426.55,0.00033041,2]
[327978901,1716732720186,-352.24,0.00033041,2]
[327978902,1716732720195,-150.0,0.00033041,2]
[327978903,1716732720205,-524.61,0.00033041,2]
[327978904,1716732720214,-163.66,0.00033041,2]
[327978905,1716732720223,-150.0,0.00033041,2]
[327978906,1716732720233,-318.25,0.00033041,2]
[327978907,1716732720243,-352.24,0.00033041,2]
[327978908,1716732720252,-421.24,0.00033041,2]
[327978909,1716732720262,-163.66,0.00033041,2]
[327978910,1716732720271,-150.0,0.00033041,2]
[327978911,1716732720281,-150.0,0.00033041,2]
[327978912,1716732720290,-421.24,0.00033041,2]
[327978913,1716732720300,-352.24,0.00033041,2]
[327978914,1716732720309,-548.51,0.00033041,2]
[327978915,1716732720319,-1048.9,0.00033041,2]
[327978916,1716732720329,-150.0,0.00033041,2]
[327978917,1716732720339,-352.24,0.00033041,2]
[327978918,1716732720348,-150.0,0.00033041,2]
[327978919,1716732720358,-163.66,0.00033041,2]
[327978920,1716732720367,-421.24,0.00033041,2]
[327978921,1716732720376,-150.0,0.00033041,2]
[327978922,1716732720385,-421.24,0.00033041,2]
[327978923,1716732720394,-163.66,0.00033041,2]
[327978924,1716732720403,-352.24,0.00033041,2]
[327978925,1716732720413,-150.0,0.00033041,2]
[327978926,1716732720423,-421.24,0.00033041,2]
[327978927,1716732720433,-150.0,0.00033041,2]
[327978928,1716732720443,-242.93,0.00033041,2]
[327978929,1716732720452,-163.66,0.00033041,2]
[327978930,1716732720462,-421.24,0.00033041,2]
[327978931,1716732720471,-837.12,0.00033041,2]
[327978932,1716732720480,-163.66,0.00033041,2]
[327978933,1716732720493,-163.66,0.00033041,2]
[327978934,1716732720503,-163.66,0.00033041,2]
[327978935,1716732720511,-163.12,0.00033041,2]
[327978936,1716732720522,-1000.0,0.00033083,14]
[327978937,1716732720531,-569.48,0.00033096,30]
[327978938,1716732720539,-569.48,0.00033096,30]
[327978939,1716732720549,-569.48,0.00033096,30]
[327978940,1716732720558,-569.48,0.00033096,30]
[327978941,1716732720570,-977.98,0.0003315,5]
[327978942,1716732720579,-867.51,0.0003315,4]
[327978943,1716732720588,-613.37,0.0003315,4]
[327978944,1716732720598,-689.25,0.0003315,4]
[327978945,1716732720607,-912.17,0.0003315,4]
[327978946,1716732720616,-577.1,0.0003315,4]
[327978947,1716732720625,-3083.08,0.0003315,4]
[327978948,1716732720635,-691.79,0.0003315,4]
[327978949,1716732720644,-317.10961588,0.0003315,4]
[327978950,1716732720654,-1003.57,0.0003315,4]
[327978951,1716732720663,-702.93,0.0003315,4]
[327978952,1716732720673,-500.0,0.0003315,4]
[327978953,1716732720683,-900.58,0.0003315,4]
[327978954,1716732720692,-891.34,0.0003315,4]
[327978955,1716732720701,-838.16,0.0003315,2]
[327978956,1716732720712,-615.98,0.0003315,4]
[327978957,1716732720722,-576.75,0.0003315,4]
[327978958,1716732720732,-767.17,0.0003315,4]
[327978959,1716732720741,-633.88,0.0003315,4]
[327978960,1716732720751,-758.6,0.0003315,4]
[327978961,1716732720760,-1363.1,0.0003315,4]
[327978962,1716732720770,-535.29,0.0003315,4]
[327978963,1716732720779,-500.0,0.0003315,4]
[327978964,1716732720788,-596.76,0.0003315,4]
[327978965,1716732720797,-500.0,0.0003315,4]
[327978966,1716732720807,-367.44066022,0.0003315,4]
[327978967,1716732720817,-638.58,0.0003315,4]
[327978968,1716732720827,-813.06,0.0003315,4]
[327978969,1716732720837,-676.35,0.0003315,4]
[327978970,1716732720847,-1206.79,0.0003315,4]
[327978971,1716732720856,-758.9,0.0003315,4]
[327978972,1716732720866,-544.35,0.0003315,2]
[327978973,1716732720875,-625.8125158,0.0003315,4]
[327978974,1716732720884,-163.70780882,0.0003315,4]
[327978975,1716732720893,-607.01,0.0003315,4]
[327978976,1716732720903,-869.48,0.0003315,4]
[327978977,1716732720912,-500.0,0.0003315,4]
[327978978,1716732720921,-598.19,0.0003315,4]
[327978979,1716732720931,-501.39,0.0003315,4]
[327978980,1716732720940,-565.06,0.0003315,4]
[327978981,1716732720950,-536.08,0.0003315,4]
[327978982,1716732720959,-238.14,0.0003315,4]
[327978983,1716732720969,-383.70902409,0.0003315,4]
[327978984,1716732720979,-575.01,0.0003315,4]
[327978985,1716732720988,-500.0,0.0003315,4]
[327978986,1716732720997,-179.19,0.0003315,4]
[327978987,1716732721007,-664.28,0.0003315,4]
[327978988,1716732721017,-500.0,0.0003315,4]
[327978989,1716732721027,-1420.49,0.0003315,4]
[327978990,1716732721035,-911.95,0.0003315,4]
[327978991,1716732721044,-532.91,0.0003315,4]
[327978992,1716732721054,-876.64,0.0003315,4]
[327978993,1716732721063,-845.02,0.0003315,4]
[327978994,1716732721073,-1217.15,0.0003315,4]
[327978995,1716732721082,-441.7271081,0.0003315,4]
[327978996,1716732721092,-209.22029777,0.0003315,4]
[327978997,1716732721103,-1573.33,0.0003315,4]
[327978998,1716732721112,-1943.35,0.0003315,4]
[327978999,1716732721122,-647.0,0.0003315,4]
[327979000,1716732721132,-827.18,0.0003315,4]
[327979001,1716732721141,-525.9,0.0003315,4]
[327979002,1716732721151,-1647.19,0.0003315,4]
[327979003,1716732721304,-812.79,0.0003315,4]
[327979004,1716732721326,-656.92,0.0003315,4]
[327979005,1716732721336,-1479.16,0.0003315,4]
[327979006,1716732721346,-859.25,0.0003315,4]
[327979007,1716732721355,-705.7,0.0003315,4]
[327979008,1716732721366,-524.26,0.0003315,4]
[327979009,1716732721376,-852.83,0.0003315,4]
[327979010,1716732721386,-792.18,0.0003315,4]
[327979011,1716732721395,-2563.75,0.0003315,4]
[327979012,1716732721405,-9047.47,0.0003315,4]
[327979013,1716732721415,-500.0,0.0003315,4]
[327979014,1716732721424,-500.0,0.0003315,4]
[327979015,1716732721434,-543.61,0.0003315,4]
[327979016,1716732721444,-937.7,0.0003315,4]
[327979017,1716732721454,-657.54,0.0003315,4]
[327979018,1716732721464,-782.0,0.0003315,4]
[327979019,1716732721474,-1533.52,0.0003315,4]
[327979020,1716732721489,-1870.6,0.0003315,4]
[327979021,1716732721499,-662.47,0.0003315,4]
[327979022,1716732721509,-523.58,0.0003315,4]
[327979023,1716732721519,-611.87,0.0003315,4]
[327979024,1716732721531,-709.98,0.0003315,4]
[327979025,1716732721542,-500.0,0.0003315,4]
[327979026,1716732721552,-739.81,0.0003315,4]
[327979027,1716732721562,-500.0,0.0003315,4]
[327979028,1716732721572,-6199.76,0.0003315,4]
[327979029,1716732721582,-724.86,0.0003315,4]
[327979030,1716732721591,-1320.63,0.0003315,4]
[327979031,1716732721600,-500.0,0.0003315,4]
[327979032,1716732721611,-852.95,0.0003315,4]
[327979033,1716732721621,-2564.82,0.0003315,4]
[327979034,1716732721630,-818.52,0.0003315,4]
[327979035,1716732721640,-2538.12,0.0003315,4]
[327979036,1716732721650,-500.0,0.0003315,4]
[327979037,1716732721660,-598.56,0.0003315,4]
[327979038,1716732721670,-2937.07,0.0003315,4]
[327979039,1716732721679,-571.73,0.0003315,4]
[327979040,1716732721689,-1041.17,0.0003315,4]
[327979041,1716732721699,-656.51,0.0003315,4]
[327979042,1716732721709,-1310.5,0.0003315,4]
[327979043,1716732721719,-552.73,0.0003315,4]
[327979044,1716732721729,-967.98,0.0003315,4]
[327979045,1716732721739,-1148.48,0.0003315,4]
[327979046,1716732721747,-795.96,0.0003315,4]
[327979047,1716732721757,-678.18,0.0003315,4]
[327979048,1716732721766,-576.35,0.0003315,4]
[327979049,1716732721776,-585.71,0.0003315,4]
[327979050,1716732721786,-606.32,0.0003315,4]
[327979051,1716732721796,-1027.88,0.0003315,4]
[327979052,1716732721806,-2390.71,0.0003315,4]
[327979053,1716732721816,-720.94,0.0003315,4]
[327979054,1716732721825,-884.01,0.0003315,4]
[327979055,1716732721835,-571.26,0.0003315,4]
[327979056,1716732721845,-1408.04,0.0003315,4]
[327979057,1716732721855,-1085.42,0.0003315,4]
[327979058,1716732721865,-1268.26,0.0003315,4]
[327979059,1716732721875,-8694.34,0.0003315,4]
[327979060,1716732721885,-459.42961219,0.0003315,4]
[327979061,1716732721894,-1268.05,0.0003315,4]
[327979062,1716732721903,-1448.06,0.0003315,4]
[327979063,1716732721913,-972.62,0.0003315,4]
[327979064,1716732721923,-573.16,0.0003315,4]
[327979065,1716732721932,-3904.28,0.0003315,4]
[327979066,1716732721941,-914.87,0.0003315,4]
[327979067,1716732721951,-1089.59,0.0003315,4]
[327979068,1716732721964,-885.34,0.0003315,4]
[327979069,1716732721973,-591.51,0.0003315,4]
[327979070,1716732721983,-500.0,0.0003315,4]
[327979071,1716732721993,-1079.94,0.0003315,4]
[327979072,1716732722002,-879.76,0.0003315,4]
[327979073,1716732722013,-1841.81,0.0003315,4]
[327979074,1716732722022,-235.11529704,0.0003315,4]
[327979075,1716732722032,-1077.58,0.0003315,4]
[327979076,1716732722041,-625.43,0.0003315,4]
[327979077,1716732722051,-710.46,0.0003315,4]
[327979078,1716732722061,-568.85,0.0003315,4]
[327979079,1716732722070,-647.72,0.0003315,4]
[327979080,1716732722080,-869.84,0.0003315,4]
[327979081,1716732722094,-678.18,0.0003315,4]
[327979082,1716732722103,-717.42,0.0003315,4]
[327979083,1716732722112,-576.0,0.0003315,4]
[327979084,1716732722123,-1137.45,0.0003315,4]
[327979085,1716732722132,-500.0,0.0003315,4]
[327979086,1716732722142,-623.77,0.0003315,4]
[327979087,1716732722150,-1101.55,0.0003315,4]
[327979088,1716732722160,-504.89,0.0003315,4]
[327979089,1716732722170,-570.33,0.0003315,4]
[327979090,1716732722179,-853.64,0.0003315,4]
[327979091,1716732722189,-1592.22,0.0003315,4]
[327979092,1716732722199,-1027.97,0.0003315,4]
[327979093,1716732722211,-1044.37,0.0003315,4]
[327979094,1716732722221,-1313.69,0.0003315,4]
[327979095,1716732722231,-624.18,0.0003315,4]
[327979096,1716732722241,-1190.26,0.0003315,4]
[327979097,1716732722251,-4137.91,0.0003315,4]
[327979098,1716732722260,-1036.79,0.0003315,4]
[327979099,1716732722270,-850.51,0.0003315,4]
[327979100,1716732722279,-1474.98,0.0003315,4]
[327979101,1716732722289,-221.79313022,0.0003315,4]
[327979102,1716732722298,-916.61,0.0003315,4]
[327979103,1716732722307,-707.12,0.0003315,4]
[327979104,1716732722317,-2412.83,0.0003315,4]
[327979105,1716732722326,-687.58,0.0003315,4]
[327979106,1716732722336,-1038.84,0.0003315,4]
[327979107,1716732722346,-654.73,0.0003315,4]
[327979108,1716732722355,-411.73320267,0.0003315,4]
[327979109,1716732722364,-928.91,0.0003315,4]
[327979110,1716732722374,-592.19,0.0003315,4]
[327979111,1716732722384,-502.52,0.0003315,4]
[327979112,1716732722393,-1244.5,0.0003315,4]
[327979113,1716732722403,-280.84,0.00033151,120]
[327979114,1716732722413,-1011.76,0.00033185,2]
[327979115,1716732722422,-753.04240616,0.00033276,7]
[327979116,1716732722431,-232.27766012,0.00033276,7]
[327979117,1716732722441,-249.23485907,0.00033276,7]
[327979118,1716732722451,-2006.01668888,0.00033276,7]
[327979119,1716732722468,-1000.0,0.0003329,14]
[327979120,1716732722494,-150.0,0.000333,7]
[327979121,1716732722511,-10286.80422094,0.00033306,2]
[327979122,1716732722533,-7322.01048,0.00033306,7]
[327979123,1716732722555,-2741.815258,0.00033306,7]
[327979124,1716732722576,-1397.487943,0.00033306,7]
[327979125,1716732722595,-569.48,0.00033369,30]
[327979126,1716732722610,-569.48,0.00033369,30]
[327979127,1716732722627,-161.44,0.00033396,2]
[327979128,1716732722648,-10707.06410034,0.00033397,2]
[327979129,1716732722668,-751473.42318308,0.000334,2]
[327979130,1716732722681,-445.0,0.000334,22]
[327979131,1716732722701,-166.25120747,0.00033406,2]
[327979132,1716732722717,-2108.08855085,0.00033406,3]
[327979133,1716732722733,-150.0,0.00033406,3]
[327979134,1716732722749,-3000.0,0.00033406,3]
[327979135,1716732722765,-50000.0,0.00033406,20]
[327979136,1716732722780,-50000.0,0.00033406,21]
[327979137,1716732722795,-50000.0,0.00033406,22]
[327979138,1716732722811,-50000.0,0.00033406,23]
[327979139,1716732722826,-50000.0,0.00033406,24]
[327979140,1716732722841,-50000.0,0.00033406,25]
[327979141,1716732722856,-50000.0,0.00033406,26]
[327979142,1716732722871,-50000.0,0.00033406,27]
[327979143,1716732722886,-601.0832659,0.00033406,10]
[327979144,1716732722902,-500.0,0.00033406,2]
[327979145,1716732722918,-500.0,0.00033406,3]
[327979146,1716732722932,-500.0,0.00033406,4]
[327979147,1716732722948,-500.0,0.00033406,5]
[327979148,1716732722965,-500.0,0.00033406,6]
[327979149,1716732722980,-500.0,0.00033406,7]
[327979150,1716732722995,-500.0,0.00033406,3]
[327979151,1716732723011,-500.0,0.00033406,4]
[327979152,1716732723026,-500.0,0.00033406,5]
[327979153,1716732723041,-541.23999627,0.00033406,6]
[327979154,1716732723057,-2935.73784595,0.00033406,2]
[327979155,1716732723071,-2000.0,0.00033406,30]
[327979156,1716732723087,-2000.0,0.00033406,30]
[327979157,1716732723102,-2000.0,0.00033406,30]
[327979158,1716732723118,-929.27679301,0.00033406,60]
[327979159,1716732723134,-263.26722968,0.00033406,30]
[327979160,1716732723150,-189.33337172,0.00033406,30]
[327979161,1716732723166,-306.47067293,0.00033406,90]
[327979162,1716732723180,-480.13187828,0.00033406,30]
[327979163,1716732723195,-358.83865491,0.00033406,30]
[327979164,1716732723211,-829.38471071,0.00033406,30]
[327979165,1716732723227,-415.89022568,0.00033406,120]
[327979166,1716732723241,-694.52069303,0.00033406,30]
[327979167,1716732723256,-426.42856746,0.00033406,30]
[327979168,1716732723272,-179.56286445,0.00033406,120]
[327979169,1716732723289,-429.59844045,0.00033406,30]
[327979170,1716732723303,-874.80781747,0.00033406,120]
[327979171,1716732723319,-378.71520345,0.00033406,30]
[327979172,1716732723333,-366.19299867,0.00033406,30]
[327979173,1716732723349,-812.3835692,0.00033406,30]
[327979174,1716732723365,-820.15389324,0.00033406,30]
[327979175,1716732723381,-655.79912017,0.00033406,30]
[327979176,1716732723397,-236.33474183,0.00033406,120]
[327979177,1716732723412,-865.9029383,0.00033406,60]
[327979178,1716732723428,-196.24157305,0.00033406,30]
[327979179,1716732723444,-912.65403383,0.00033406,30]
[327979180,1716732723458,-331.06427016,0.00033406,30]
[327979181,1716732723474,-801.06811426,0.00033406,30]
[327979182,1716732723493,-291.42217725,0.00033406,120]
[327979183,1716732723508,-272.2584743,0.00033406,120]
[327979184,1716732723524,-1003.32645914,0.00033406,120]
[327979185,1716732723539,-490.34012379,0.00033406,30]
[327979186,1716732723554,-558.30439569,0.00033406,120]
[327979187,1716732723570,-212.28454992,0.00033406,5]
[327979188,1716732723585,-366.36634494,0.00033406,120]
[327979189,1716732723599,-12000.0,0.00033406,32]
[327979190,1716732723613,-176.95084702,0.00033406,120]
[327979191,1716732723628,-839.4894328,0.00033406,30]
[327979192,1716732723641,-219.61845776,0.00033406,7]
[327979193,1716732723657,-5093.67511557,0.00033406,16]
[327979194,1716732723672,-191.88632496,0.00033406,30]
[327979195,1716732723686,-293.40945497,0.00033406,120]
[327979196,1716732723701,-231.451788,0.00033406,30]
[327979197,1716732723716,-361.89274155,0.00033406,120]
[327979198,1716732723731,-396.16457337,0.00033406,120]
[327979199,1716732723746,-251.33292165,0.00033406,30]
[327979200,1716732723761,-228.63877982,0.00033406,120]
[327979201,1716732723776,-315.2774082,0.00033406,120]
[327979202,1716732723792,-268.8816687,0.00033406,7]
[327979203,1716732723806,-820.4584617,0.00033406,30]
[327979204,1716732723820,-543.53333835,0.00033406,120]
[327979205,1716732723835,-830.30355142,0.00033406,30]
[327979206,1716732723850,-304.32768866,0.00033406,30]
[327979207,1716732723865,-206.2922063,0.00033406,5]
[327979208,1716732723880,-400.00000099,0.00033406,120]
[327979209,1716732723896,-221.9,0.00033406,90]
[327979210,1716732723910,-6566.28909111,0.00033406,4]
[327979211,1716732723924,-19768.3529381,0.00033406,4]
[327979212,1716732723938,-713840.76923348,0.00033406,2]
[327979213,1716732723953,-2000.0,0.00033406,2]
[327979214,1716732723968,-951.0299,0.00033406,30]
[327979215,1716732723983,-169022.32375659,0.00033406,2]
[327979216,1716732723997,-119240.11621142,0.00033406,2]
[327979217,1716732724011,-1210.0,0.00033406,2]
[327979218,1716732724029,-3595.13792993,0.00033406,2]
[327979219,1716732724047,-340.29224583,0.00033406,2]
[327979220,1716732724062,-4702.06139113,0.00033406,2]
[327979221,1716732724077,-222.79588631,0.00033406,2]
[327979222,1716732724093,-1485.42485714,0.00033406,2]
[327979223,1716732724108,-7203.99394527,0.00033406,2]
[327979224,1716732724125,-1006.20712281,0.00033406,2]
[327979225,1716732724140,-10448.3151794,0.00033406,2]
[327979226,1716732724155,-5064.79904118,0.00033406,2]
[327979227,1716732724169,-6183.46920552,0.00033406,2]
[327979228,1716732724186,-2670.06557787,0.00033406,2]
[327979229,1716732724201,-2397.19118543,0.00033406,2]
[327979230,1716732724214,-5477.4249424,0.00033406,2]
[327979231,1716732724223,-2615.35026206,0.00033406,2]
[327979232,1716732724234,-134124.11420858,0.00033406,2]
[327979233,1716732724243,-3172.13400984,0.00033406,2]
[327979234,1716732724504,-7264.37430157,0.00033406,2]
[327979235,1716732724518,-160.25073041,0.00033406,2]
[327979236,1716732724528,-22265.5645389,0.00033406,2]
[327979237,1716732724538,-14775.71412925,0.00033406,2]
[327979238,1716732724547,-1044.04205821,0.00033406,2]
[327979239,1716732724558,-5830.5902907,0.00033406,2]
[327979240,1716732724567,-176.5762419,0.00033406,2]
[327979241,1716732724577,-849.92957181,0.00033406,2]
[327979242,1716732724587,-1021.29027565,0.00033406,2]
[327979243,1716732724596,-186.55621396,0.00033406,2]
[327979244,1716732724605,-9019.60770253,0.00033406,2]
[327979245,1716732724614,-1280.60999573,0.00033406,2]
[327979246,1716732724624,-4828.05101875,0.00033406,2]
[327979247,1716732724633,-290.10453329,0.00033406,2]
[327979248,1716732724643,-481.42403328,0.00033406,2]
[327979249,1716732724653,-12538.81994334,0.00033406,2]
[327979250,1716732724662,-1877.37344652,0.00033406,2]
[327979251,1716732724671,-5457.17737135,0.00033406,2]
[327979252,1716732724680,-643.0,0.00033406,2]
[327979253,1716732724690,-948.33526059,0.00033406,2]
[327979254,1716732724700,-8090.73143662,0.00033406,2]
[327979255,1716732724710,-1150.982841,0.00033406,2]
[327979256,1716732724719,-560.13851778,0.00033406,2]
[327979257,1716732724729,-1795.75756943,0.00033406,2]
[327979258,1716732724739,-16365.63475266,0.00033406,2]
[327979259,1716732724748,-34876.01696383,0.00033406,2]
[327979260,1716732724758,-550.0,0.00033406,2]
[327979261,1716732724768,-985.52752977,0.00033406,2]
[327979262,1716732724778,-10465.61511336,0.00033406,2]
[327979263,1716732724787,-1330.85547882,0.00033406,2]
[327979264,1716732724797,-165691.41315398,0.00033406,2]
[327979265,1716732724807,-14612.56081409,0.00033406,2]
[327979266,1716732724816,-6000.0,0.00033406,2]
[327979267,1716732724826,-1010.28482086,0.00033406,2]
[327979268,1716732724835,-10373.58678882,0.00033406,2]
[327979269,1716732724844,-14306.13354616,0.00033406,2]
[327979270,1716732724855,-550.66225727,0.00033406,2]
[327979271,1716732724865,-150.0,0.00033406,2]
[327979272,1716732724874,-639.69689892,0.00033406,2]
[327979273,1716732724884,-348.41955978,0.00033406,2]
[327979274,1716732724893,-7164.44897872,0.00033406,2]
[327979275,1716732724903,-612.54862301,0.00033406,2]
[327979276,1716732724912,-210.0345737,0.00033406,2]
[327979277,1716732724922,-150052.53244746,0.00033406,2]
[327979278,1716732724932,-439.6011587,0.00033406,2]
[327979279,1716732724942,-1043.6148187,0.00033406,2]
[327979280,1716732724952,-20780.19002684,0.00033406,2]
[327979281,1716732724962,-2500.0,0.00033406,2]
[327979282,1716732724972,-566.5931938,0.00033406,2]
[327979283,1716732724981,-23290.03308146,0.00033406,2]
[327979284,1716732724991,-2327.48339264,0.00033406,2]
[327979285,1716732725000,-235.38740173,0.00033406,2]
[327979286,1716732725009,-527.09155348,0.00033406,2]
[327979287,1716732725018,-408372.02810557,0.00033406,2]
[327979288,1716732725028,-10262.66721716,0.00033406,2]
[327979289,1716732725037,-892.27409204,0.00033406,2]
[327979290,1716732725047,-26971.63598468,0.00033406,2]
[327979291,1716732725056,-9321.6716796,0.00033406,2]
[327979292,1716732725065,-471.13770585,0.00033406,2]
[327979293,1716732725074,-387.18886468,0.00033406,2]
[327979294,1716732725084,-241.80785323,0.00033406,2]
[327979295,1716732725093,-14882.99261863,0.00033406,2]
[327979296,1716732725103,-21485.83966812,0.00033406,2]
[327979297,1716732725112,-1775.28833396,0.00033406,2]
[327979298,1716732725122,-318.6869748,0.00033406,2]
[327979299,1716732725132,-535.57041763,0.00033406,2]
[327979300,1716732725141,-4893.79161522,0.00033406,2]
[327979301,1716732725151,-356.68949283,0.00033406,2]
[327979302,1716732725164,-172.21582866,0.00033406,2]
[327979303,1716732725174,-595.94001236,0.00033406,2]
[327979304,1716732725183,-9547.09278624,0.00033406,2]
[327979305,1716732725194,-9300.4152205,0.00033406,2]
[327979306,1716732725203,-42057.9920609,0.00033406,2]
[327979307,1716732725214,-677439.98940921,0.00033406,2]
[327979308,1716732725222,-19052.46313732,0.00033406,2]
[327979309,1716732725231,-1796.45960917,0.00033406,2]
[327979310,1716732725240,-339.49384355,0.00033406,2]
[327979311,1716732725249,-5062.7438106,0.00033406,2]
[327979312,1716732725258,-11584.99024575,0.00033406,2]
[327979313,1716732725267,-13000.0,0.00033406,2]
[327979314,1716732725276,-1010.58991506,0.00033406,2]
[327979315,1716732725285,-215.4342543,0.00033406,2]
[327979316,1716732725294,-13742.6163788,0.00033406,2]
[327979317,1716732725303,-1009.80585502,0.00033406,2]
[327979318,1716732725312,-5023.64647478,0.00033406,2]
[327979319,1716732725320,-23205.81666533,0.00033406,2]
[327979320,1716732725330,-8207.322542,0.00033406,5]
[327979321,1716732725339,-150.0,0.00033406,2]
[327979322,1716732725348,-3527.57550466,0.00033406,120]
[327979323,1716732725357,-1017.4,0.00033406,30]
[327979324,1716732725366,-100996.48925051,0.00033406,30]
[327979325,1716732725375,-720.98479483,0.00033406,2]
[327979326,1716732725384,-169.59236647,0.00033406,30]
[327979327,1716732725393,-2000.0,0.00033406,120]
[327979328,1716732725403,-516.28654432,0.00033406,15]
[327979329,1716732725412,-7593.0,0.00033406,120]
[327979330,1716732725422,-11911.81942306,0.00033406,2]
[327979331,1716732725431,-150.0,0.00033406,2]
[327979332,1716732725442,-150.84703525,0.00033406,3]
[327979333,1716732725451,-282.19108981,0.00033406,30]
[327979334,1716732725461,-625.49316738,0.00033406,120]
[327979335,1716732725471,-189.0,0.00033406,30]